Cogmind - Beta 15 @@@ ROGUE MODE // 2025.06.21 @ 17:55:49 Player: CheifClapdad Result: Destroyed by G-47 Trooper with Particle Gun Performance ------------- Evolutions (2) 1000 Regions Visited (3) 600 Robots Destroyed (40) 200 Value Destroyed (1356) 1356 Prototype IDs (1) 20 Alien Tech Used (0) 0 Bonus (0) 0 TOTAL SCORE: 3176 Bonus ------- None Cogmind --------- Core Integrity 0/550 Matter 177/300 Energy 160/160 System Corruption 0% Temperature Cool (9) Movement Rolling (140) Ox4 Location -8/Materials Parts ------- > --- POWER (1) -------- Light Nuclear Core > --- PROPULSION (2) --- Wheel > --- UTILITY (2) ------ Improved Heat Sink High-capacity Storage Unit > --- WEAPON (6) ------- Heavy Assault Rifle > --- INVENTORY (20) --- Light Treads Light Treads High-capacity Storage Unit Medium Battery (150) High-capacity Matter Pod (200) Improved Targeting Computer Improved Targeting Computer Utility Shielding Utility Shielding Utility Shielding Improved Light Armor Plating Shield Generator Tractor Beam Tractor Beam Peak State ------------ > --- POWER ------------ Ion Engine > --- PROPULSION ------- Light Treads Wheel > --- UTILITY ---------- High-capacity Storage Unit Utility Shielding > --- WEAPON ----------- Improved EM Shotgun Light Assault Rifle Heavy Assault Rifle Improved Light Cannon > --- INVENTORY -------- Light Nuclear Core Light Treads Light Treads Light Treads Wheel Heat Sink Improved Heat Sink Medium Battery High-capacity Matter Pod Improved Targeting Computer Improved Targeting Computer Utility Shielding Utility Shielding Medium Laser Beam Cannon Grenade Launcher [Rating: 15] Favorites ----------- Power Light Ion Engine Engine Light Ion Engine Power Core Light Nuclear Core Propulsion Light Treads Treads Light Treads Wheel Compact Wheel Utility Utility Shielding Device Improved Heat Sink Storage High-capacity Storage Unit Protection Utility Shielding Weapon Assault Rifle Energy Gun Medium Laser Energy Cannon Beam Cannon Ballistic Gun Assault Rifle Ballistic Cannon Improved Light Cannon Launcher Grenade Launcher Build | -11 -10 -9 -8 ------- Run | Yrd Mat Mat Mat Slots Evolved 4 | . . 2 2 Power . | . . . . Propulsion . | . . . . Utility . | . . . . Weapon 4 | . . 2 2 Parts Attached 29 | 6 4 9 10 Power 3 | 1 . 1 1 Engine 2 | 1 . 1 . Core 1 | . . . 1 Reactor . | . . . . Propulsion 8 | 2 1 3 2 Treads 3 | 1 . 2 . Leg . | . . . . Wheel 5 | 1 1 1 2 Hover . | . . . . Flight . | . . . . Utility 5 | 1 3 . 1 Device 1 | . . . 1 Storage 3 | 1 2 . . Processor . | . . . . Hackware . | . . . . Protection 1 | . 1 . . Artifact . | . . . . Weapon 13 | 2 . 5 6 Energy Gun 3 | 1 . 1 1 Energy Cannon 1 | . . . 1 Ballistic Gun 7 | 1 . 3 3 Ballistic Cannon 1 | . . 1 . Launcher 1 | . . . 1 Special Weapon . | . . . . Impact Weapon . | . . . . Slashing Weapon . | . . . . Piercing Weapon . | . . . . Special Melee Weapon . | . . . . Unidentified Prototypes 1 | . . 1 . Parts Lost 18 | . 2 6 10 Power 2 | . 1 1 . Propulsion 6 | . 1 2 3 Utility . | . . . . Weapon 10 | . . 3 7 Highest Loss Streak 7 | . 2 2 7 To Critical Strikes . | . . . . Average Backups 12 | 1 8 17 18 Power 1 | . 1 1 . Propulsion 3 | . 1 4 3 Utility 6 | . 2 8 11 Weapon 2 | . 1 3 2 Tool/Special . | . . . . Unused Backups 17 | . . 4 13 Power . | . . . . Propulsion 4 | . . 3 1 Utility 13 | . . 1 12 Weapon . | . . . . Tool/Special . | . . . . Average Slot Usage (%) 79 | . 77 84 73 Engine 3 | . 3 4 . Treads 11 | . 14 10 7 Wheel 10 | . 12 8 9 Storage 11 | . 14 11 9 Protection 7 | . 3 11 6 Energy Gun 10 | . 14 8 6 Ballistic Gun 17 | . 14 18 25 Ballistic Cannon 5 | . . 10 6 Peak Build Rating 15 | 6 7 15 15 Average Rating 9 | 4 6 12 12 On Entrance 6 | . 6 7 13 Naked Turns . | . . . . Heaviest Build 57 | 12 45 57 55 Greatest Support 40 | 20 16 40 20 Greatest Overweight (x) 18 | . 7 18 5 Average Overweight (x) 2 | . 1 4 4 Largest Inventory Capacity 20 | 8 20 20 20 Average Capacity 16 | 6 14 20 20 Most Carried 20 | 3 15 20 20 Average Carried 12 | 1 8 17 18 Final Capacity 20 | 8 20 20 20 Final Carried 20 | 3 15 20 14 Class Distribution -------------------- 51% | Mutant 37% | Tank 10% | Executioner Dominant Class ---------------- Mutant | -10/Materials Tank | -9/Materials Executioner | -8/Materials Resources | -11 -10 -9 -8 ----------- Run | Yrd Mat Mat Mat Matter Collected 1168 | 244 365 248 311 Remotely . | . . . . Salvage Created 1537 | . 460 461 616 Parts 85 | . 23 37 25 Haulers Intercepted 3 | . 2 1 . Recyclers Shooed . | . . . . Parts Field Recycled . | . . . . Retrieved Matter . | . . . . Parts Self-Destructed . | . . . . Prevented . | . . . . Kills | -11 -10 -9 -8 ------- Run | Yrd Mat Mat Mat Combat Hostiles Destroyed 32 | . 9 10 13 Guns 23 | . 9 7 7 Cannons 8 | . . 3 5 AOE 1 | . . . 1 Classes Destroyed 9 | . 2 5 2 Builder 2 | . . 1 1 Hauler 3 | . 2 1 . Mechanic 1 | . . 1 . Watcher 2 | . . 2 . Swarmer 3 | . . 3 . Grunt 23 | . 9 5 9 Brawler 1 | . . . 1 Sentry 4 | . . 2 2 Hunter 1 | . . . 1 Best Kill Streak 6 | . 3 6 4 Combat Bots Only 6 | . 3 6 4 Max Kills in Single Turn 2 | . 1 2 2 Gunslinging . | . . . . Exploded 1 | . . . 1 Melee . | . . . . Uniques/NPCs Destroyed . | . . . . Combat | -11 -10 -9 -8 -------- Run | Yrd Mat Mat Mat Hostile Shots Fired 226 | . 48 51 127 Missed 48 | . 13 13 22 Hits 178 | . 35 38 105 Projectile 178 | . 35 38 105 Critical Strikes 9 | . 1 2 6 Damage Taken 2642 | . 422 507 1713 Core 751 | . 135 54 562 Absorbed by Shields . | . . . . Redirected to Shielding 14 | . . 3 11 Core Remaining (%) 77 | 100 46 86 . Volleys Fired 116 | . 47 31 38 Largest 6 | . 2 4 6 Hottest 158 | . 70 121 158 Shots Fired 305 | . 93 95 117 Gun 248 | . 93 64 91 Cannon 53 | . . 31 22 Launcher 4 | . . . 4 Special . | . . . . Kinetic 214 | . 47 77 90 Thermal 72 | . 46 14 12 Explosive 4 | . . . 4 Electromagnetic 15 | . . 4 11 Robot Hit Streak 17 | . 12 4 17 Robot Miss Streak 4 | . 4 4 4 Penetration Max . | . . . . Secondary Targets 1 | . 1 . . Max Gunslinging Chain 1 | . 1 . . Shots Hit Robots 179 | . 59 47 73 Core Hits 79 | . 24 21 34 Critical Kills . | . . . . Critical Parts Destroyed . | . . . . Critical Strikes 8 | . 4 . 4 Burn 6 | . 4 . 2 Blast 2 | . . . 2 Melee Attacks . | . . . . Impact . | . . . . Slashing . | . . . . Piercing . | . . . . Sneak Attacks . | . . . . Combat Hostiles . | . . . . Follow-up Attacks . | . . . . Damage Inflicted 2928 | . 741 778 1409 Guns 1929 | . 736 424 769 Cannons 576 | . . 269 307 Explosions 418 | . . 85 333 Melee . | . . . . Ramming 5 | . 5 . . Kinetic 1674 | . 373 557 744 Thermal 669 | . 363 99 207 Explosive 356 | . . 85 271 Electromagnetic 224 | . . 37 187 Impact . | . . . . Slashing . | . . . . Piercing . | . . . . Highest Corruption 1 | . . 1 . Average Corruption 1 | . . 1 . Corruption Purged . | . . . . Corruption Blocked . | . . . . Effects 3 | . . 3 . Message Errors 1 | . . 1 . Matter Fused 1 | . . 1 . Data Loss (major) 1 | . . 1 . Overload Shots . | . . . . Overflow Damage 36 | . . 26 10 Projectiles . | . . . . Explosions 36 | . . 26 10 Melee . | . . . . Knockbacks 4 | . . . 4 Impact . | . . . . Kinetic 4 | . . . 4 Secondary . | . . . . Self-Inflicted Damage 157 | . 2 36 119 Shots 4 | . . 1 3 Rammed 1 | . 1 . . Targets Rammed 1 | . 1 . . Kicked . | . . . . Crushed . | . . . . Highest Temperature 534 | . 195 211 534 Average Temperature 107 | . 68 67 201 Received Heat Transfer 1167 | . 258 180 729 Effects 6 | . . . 6 Energy Bleed 1 | . . . 1 Matter Decay 1 | . . . 1 Short Circuit 2 | . . . 2 Damage (minor) 1 | . . . 1 Damage (core) 1 | . . . 1 Siege Activations . | . . . . Martial Activations . | . . . . Shielding Activations . | . . . . Robots Disrupted . | . . . . Combat Hostiles . | . . . . Robots Corrupted . | . . . . Combat Hostiles . | . . . . Parts Fried . | . . . . Impact Corruptions . | . . . . Robots Melted . | . . . . Combat Hostiles . | . . . . Parts Melted 6 | . 3 . 3 Heat Transferred 2233 | . 1369 296 568 Parts Sabotaged . | . . . . Parts Stolen . | . . . . Parts Stripped . | . . . . Power Chain Reactions 1 | . . . 1 Alert | -11 -10 -9 -8 ------- Run | Yrd Mat Mat Mat Maximum Alert Level . | . . . . Low Security (%) 100 | 100 100 100 100 Level 1 . | . . . . Level 2 . | . . . . Level 3 . | . . . . Level 4 . | . . . . Level 5 . | . . . . High Security . | . . . . Max Security . | . . . . Peak Influence 193 | . 104 193 171 Initial 18 | . . 18 14 Average 63 | . 27 104 83 Influence Increases 1034 | . 264 399 371 Destroy 0b10 Robot/C 640 | . 180 200 260 Destroy 0b10 Robot/NC 40 | . 10 25 5 Destroy Leader 170 | . 44 56 70 Disable Machine 60 | . . 60 . Destroy Structure 64 | . . 28 36 Lose Combat Pursuer 60 | . 30 30 . Influence Decreases 873 | . 219 409 245 Entered New Map 48 | . . 27 21 Time Decay 665 | . 219 322 124 Lost Part 160 | . . 60 100 Squads Dispatched 7 | . 3 . 4 Investigation 3 | . 2 . 1 Extermination . | . . . . Reinforcement 2 | . 1 . 1 Assault . | . . . . Garrison 2 | . . . 2 Intercept . | . . . . Searches Triggered . | . . . . Construction Impeded 1 | . . . 1 Haulers Reinforced . | . . . . Active Scanning Responses . | . . . . Cargo Convoy Interrupts . | . . . . Stealth | -11 -10 -9 -8 --------- Run | Yrd Mat Mat Mat Distress Signals 3 | . . 2 1 Communications Jammed . | . . . . Distress Signals . | . . . . Times Spotted 62 | . 25 22 15 Peak Tracking Total 8 | . 6 8 5 Tactical Retreats 2 | . 1 1 . Traps | -11 -10 -9 -8 ------- Run | Yrd Mat Mat Mat Traps Triggered 3 | . 2 . 1 Indirectly . | . . . . Trap Hack Attempts . | . . . . Triggered . | . . . . Disarmed . | . . . . Reprogrammed . | . . . . Reused . | . . . . Traps Extracted . | . . . . Installed . | . . . . Triggered . | . . . . Machines | -11 -10 -9 -8 ---------- Run | Yrd Mat Mat Mat Machines Disabled 4 | . . 4 . Max in Single Turn 2 | . . 2 . Machines Repaired . | . . . . Machines Dismantled . | . . . . Machines Sabotaged . | . . . . Overloaded Fab Kills . | . . . . Hacking | -11 -10 -9 -8 --------- Run | Yrd Mat Mat Mat Machines Accessed . | . . . . Terminals . | . . . . Fabricators . | . . . . Repair Stations . | . . . . Recycling Units . | . . . . Scanalyzers . | . . . . Garrison Access . | . . . . Total Hacks . | . . . . Successful . | . . . . Failed . | . . . . Catastrophic . | . . . . Database Lockouts . | . . . . Manual . | . . . . Terminals . | . . . . Fabricators . | . . . . Repair Stations . | . . . . Recycling Units . | . . . . Scanalyzers . | . . . . Garrison Access . | . . . . Terminal Hacks . | . . . . Fabricator Hacks . | . . . . Repair Station Hacks . | . . . . Recycling Unit Hacks . | . . . . Scanalyzer . | . . . . Garrison Access Hacks . | . . . . Unauthorized Hacks . | . . . . Terminals . | . . . . Fabricators . | . . . . Repair Stations . | . . . . Recycling Units . | . . . . Scanalyzers . | . . . . Garrison Access . | . . . . Data Cores Recovered . | . . . . Used . | . . . . Hacking Detections . | . . . . Full Trace Events . | . . . . Feedback Events . | . . . . Feedback Blocked . | . . . . Robot Schematics Acquired . | . . . . Robots Built . | . . . . Authchips . | . . . . Time . | . . . . Total Robot Build Rating . | . . . . Part Schematics Acquired . | . . . . Parts Built . | . . . . Authchips . | . . . . Time . | . . . . Total Part Build Rating . | . . . . Parts Repaired . | . . . . Time . | . . . . Parts Recycled . | . . . . Recycled Matter . | . . . . Retrieved Matter . | . . . . Retrieved Components . | . . . . Parts Scanalyzed . | . . . . Part Schematics Acquired . | . . . . Parts Damaged . | . . . . Bothacking | -11 -10 -9 -8 ------------ Run | Yrd Mat Mat Mat Used RIF Installer . | . . . . Robots Hacked . | . . . . Non-combat . | . . . . Combat . | . . . . Robot Hacks Applied . | . . . . Relay Couplers Released . | . . . . Fabnet Peak Effective % . | . . . . Robots Rewired . | . . . . Allies Hacked . | . . . . Hacks Repelled . | . . . . Allies | -11 -10 -9 -8 -------- Run | Yrd Mat Mat Mat Total Allies . | . . . . Largest Group . | . . . . Highest-Rated Group . | . . . . Highest-Rated Ally . | . . . . Total Orders . | . . . . Ally Attacks . | . . . . Total Damage . | . . . . Kills . | . . . . Allies Corrupted . | . . . . Allies Melted . | . . . . Intel | -11 -10 -9 -8 ------- Run | Yrd Mat Mat Mat Active Infowar (turns) . | . . . . Robot Analysis Total . | . . . . Derelict Logs Recovered . | . . . . Drone Launches . | . . . . Drone Recoveries . | . . . . Exploration | -11 -10 -9 -8 ------------- Run | Yrd Mat Mat Mat Turns Passed 2050 | 123 858 756 313 Spaces Moved 1133 | 75 561 373 124 Core 28 | 6 16 6 . Treads 85 | 67 . 18 . Legs . | . . . . Wheels 1020 | 2 545 349 124 Hover . | . . . . Flight . | . . . . Fastest Speed 50 | 50 100 130 110 Average Speed 142 | 149 122 168 149 Slowest Speed 950 | 160 400 950 155 Overloaded Moves . | . . . . Propulsion Burnouts . | . . . . Robots Hopped . | . . . . Potential Cave-ins . | . . . . Cave-ins Triggered . | . . . . Exploration Rate (%) 25 | 4 62 27 10 Regions Visited 3 Branch Regions . Pre-discovered Areas . | . . . . Known Exits Taken . | . . . . Unknown Exits Taken 3 | 1 1 1 . Scrap Searched . | . . . . Spaces Dug . | . . . . Terrain Destroyed 66 | . . 29 37 Melee . | . . . . Projectile 3 | . . 1 2 AOE 63 | . . 28 35 Terrain Rammed . | . . . . Walls Destroyed . | . . . . Machines Disabled . | . . . . Actions | -11 -10 -9 -8 --------- Run | Yrd Mat Mat Mat Total 1338 | 83 641 432 182 Wait 17 | . 13 2 2 Move 1130 | 74 560 372 124 Hop . | . . . . Pick Up 33 | 3 14 13 3 Fast Attach 14 | 6 1 5 2 Attach 13 | . 2 3 8 Detach . | . . . . Swap 3 | . 1 1 1 Drop 11 | . 2 5 4 Fire 116 | . 47 31 38 Melee . | . . . . Ram 1 | . 1 . . Kick . | . . . . Crush . | . . . . Escape Stasis . | . . . . Rewire . | . . . . Trap . | . . . . Miscellaneous . | . . . . Route ------- -11/Scrapyard -10/Materials (discovered 3 exits: [*Mat] / [*Min x2]) -9/Materials -8/Materials History --------- Turn | Location | Event 19 | -11/Scrapyard | Discovered new exit (range 16) 124 | -11/Scrapyard | Entered Materials 318 | -10/Materials | Build established: Mutant 591 | -10/Materials | Discovered new exit (range 16) 757 | -10/Materials | Core integrity fell below 50% 798 | -10/Materials | Discovered new exit (range 8) 914 | -10/Materials | Discovered new exit (range 15) 982 | -10/Materials | Entered another Materials area 982 | -9/Materials | Evolved 2 slots: Weapon x2 1296 | -9/Materials | Build established: Tank 1457 | -9/Materials | Discovered new exit (range 4) 1738 | -9/Materials | Entered another Materials area 1738 | -8/Materials | Evolved 2 slots: Weapon x2 1867 | -8/Materials | Garrison activated, responded to threat 1978 | -8/Materials | Lost 3 parts (3w) 2008 | -8/Materials | Core integrity fell below 50% 2022 | -8/Materials | Core integrity fell below 20% 2051 | -8/Materials | Destroyed by G-47 Trooper with Particle Gun Last Messages --------------- 02032_ K-01 Serf collects debris. 02032_ U-05 Engineer lays Concrete. 02033_ The unstable cave ceiling collapses. 02033_ U-05 Engineer builds a Wall. 02033_ Acquired Hvy. Assault Rifle. 02036_ Acquired 14 matter. 02036_ K-01 Serf collects debris. 02037_ The unstable cave ceiling collapses. 02038_ U-05 Engineer lays Concrete. 02038_ U-05 Engineer builds a Wall. 02039_ U-05 Engineer lays Concrete. 02041_ K-01 Serf collects debris. 02042_ U-05 Engineer lays Concrete. 02044_ G-47 Trooper destroyed. 02044_ K-01 Serf collects debris. 02045_ U-05 Engineer builds a Wall. 02047_ Wheel destroyed. 02048_ K-01 Serf collects debris. 02049_ U-05 Engineer builds a Wall. 02051_ K-01 Serf collects debris. Map ----- +----------------------------------------------------+ | ????????????????# """ # # ! # | | ????????????????# "" + + # | | ????????????????# """ # # # | | ????????????????# """ # # " " ]# | | ????????????????# """ # # "R" # | | ????????????????# " # # """ # | | ????????????????# # ########## | | ????????????????# ! # #######??? | | ????????????????#+##### #??? | | ????????????????# ???#" #??? | | ????????????????# ####" #??? | | ????????????????# #??? | | ????????????????# ####### #??? | | ????????????????# ????# | #??? | | ???????????????##+###?## % [ #??? | | ???????????????# ! ###= =%= #??? | | ???????????????#[ # # #??? | | ???????????????# """ # =* ] ##?? | | ???????????????# G" # #u##+##+###? | | ???????????????#% """ % * = #? | | ???????????????# # * #? | | ???????????????######/ Y " #? | | ??????????? =g!k """ #? | | ??????????????## #### ##=!= """ !#? | | ????????????????????# ?# # #? | | ????????????????????#??##@#########? | | ???????????????????????## #????????? | | ????????????????????????# #????????? | | ????????????????????????#%#????????? | | ????????????????????????#%#????????? | | ????????????????????????#%#????????? | | ????????????????????????# #????????? | | ????????????????????????# #????????? | | ????????????????????????# #????????? | | ?????????????????????????+?????????? | | ????????????????????????? ?????????? | | ?????????????????????????"?????????? | | ?????????????????????????"?????????? | | ???????????????????????????????????? | | ???????????????????????????????????? | | ???????????????????????????????????? | | ???????????????????????????????????? | | ???????????????????????????????????? | | ???????????????????????????????????? | | ???????????????????????????????????? | | ???????????????????????????????????? | | ???????????????????????????????????? | | ???????????????????????????????????? | | ???????????????????????????????????? | | ???????????????????????????????????? | +----------------------------------------------------+ Best States ------------- Heat Dissipation 45 Energy Generation 14 Energy Capacity 250 Matter Stores 300 Matter Capacity 300 Sight Range 16 Terrain Scan Density 10 Utility Shielding 33 Evasion (%) 40 Recoil Reduction 2 Item Schematics ----------------- None Robot Schematics ------------------ None Fabricated ------------ Nothing Repaired ---------- Nothing Alien Tech Used ----------------- None Achievements -------------- None Challenges ------------ None Game ------ Seed ArmageddonAblativeTube Manual? 0 Play Time 00:13:55 Cumulative 82.9 hours Start 2025.06.21 @ 17:41:18 End 2025.06.21 @ 17:55:49 Sessions 1 Manual Loads 0 Difficulty Rogue Special Mode None Game No. 112 Rogue 112 Adventurer 0 Explorer 0 Win Type - Total 1 Types 1/0/0/0/0/0/0/0/0/0 Lore% 35 Gallery% 47 Achievement% 41 Wizard Run 0 Options --------- Layout 1 ASCII 0 Keyboard 0 Movement Arrows Keybinds 0 Fullscreen 1 Font 24/Smallcaps Map View 50x35 Zoom Use 0% Tactical HUD 1 Map Filters NONE Filters NONE Steam X RUN: 8eca7482-a9b1-461e-88a7-4d38be251d6b